bitfinex-derivatives/quotes_BTCF0:USTF0_20250129
["timestamp","ask_amount","ask_price","bid_price","bid_amount"]
[1738156432899,0.68936238,102180.0,102170.0,0.28229299]
[1738156433101,0.68936238,102180.0,102170.0,0.47811499]
[1738156435995,0.68936238,102180.0,102170.0,0.38596885]
[1738156436398,0.68936238,102180.0,102170.0,0.47811499]
[1738156437302,0.68936238,102180.0,102170.0,0.19014685]
[1738156437500,0.602002,102180.0,102170.0,0.19014685]
[1738156440707,0.69414814,102180.0,102170.0,0.19014685]
[1738156441500,0.78150852,102180.0,102170.0,0.19014685]
[1738156443897,0.68936238,102180.0,102170.0,0.19014685]
[1738156445010,0.78150852,102180.0,102170.0,0.19014685]
[1738156445209,0.89745011,102180.0,102170.0,0.19014685]
[1738156445513,0.80530397,102180.0,102170.0,0.19014685]
[1738156448505,0.71794359,102180.0,102170.0,0.19014685]
[1738156448714,0.71794359,102180.0,102170.0,0.47811399]
[1738156449407,0.71794359,102180.0,102170.0,0.51901399]
[1738156451603,0.71794359,102180.0,102170.0,0.42686785]
[1738156452113,0.602002,102180.0,102170.0,0.42686785]
[1738156452605,0.602002,102180.0,102170.0,0.23104685]
[1738156452814,0.69414814,102180.0,102170.0,0.19014685]
[1738156453014,0.73554814,102180.0,102170.0,0.19014685]
[1738156453711,0.643402,102180.0,102170.0,0.19014685]
[1738156455417,0.73554814,102180.0,102170.0,0.19014685]
[1738156455807,0.643402,102180.0,102170.0,0.19014685]
[1738156456317,0.75934359,102180.0,102170.0,0.19014685]
[1738156459908,0.85148973,102180.0,102170.0,0.19014685]
[1738156460723,0.75934359,102180.0,102170.0,0.19014685]
[1738156466927,0.85148973,102180.0,102170.0,0.19014685]
[1738156467310,0.68550592,102180.0,102150.0,0.52934638]
[1738156467624,0.55664,102160.0,102150.0,0.71934638]
[1738156468121,0.55664,102160.0,102150.0,0.81149252]
[1738156469325,0.55664,102160.0,102150.0,0.81549252]
[1738156470425,0.55664,102160.0,102150.0,0.81749252]
[1738156471219,0.96194,102160.0,102150.0,0.48740338]
[1738156471920,1.04953988,102160.0,102150.0,0.196]
[1738156473339,1.04953988,102160.0,102150.0,0.48400614]
[1738156475727,1.00503988,102160.0,102150.0,0.48400614]
[1738156475924,0.64423988,102160.0,102150.0,0.48400614]
[1738156476126,0.28343988,102160.0,102150.0,0.48400614]
[1738156476530,0.08759988,102160.0,102150.0,0.71867932]
[1738156477832,0.64423988,102160.0,102150.0,0.62653318]
[1738156479323,0.65488708,102160.0,102150.0,0.62653318]
[1738156480131,0.65488708,102160.0,102150.0,0.71867932]
[1738156480528,0.45904708,102160.0,102150.0,0.48400614]
[1738156480734,0.08759988,102160.0,102150.0,0.57615228]
[1738156480923,0.08759988,102160.0,102150.0,0.93695228]
[1738156483832,0.20679309,102170.0,102160.0,0.195841]
[1738156484033,0.20679309,102170.0,102160.0,0.62298714]
[1738156484732,0.00014685,102170.0,102160.0,0.62298714]
[1738156485524,0.00014685,102170.0,102160.0,0.98378714]
[1738156486137,0.00014685,102170.0,102160.0,1.0967932]
[1738156486433,0.00014685,102170.0,102160.0,1.19468366]
[1738156486628,1e-08,102170.0,102160.0,1.23138685]
[1738156487127,1e-08,102170.0,102160.0,1.19568366]
[1738156487923,1e-08,102170.0,102160.0,1.48708704]
[1738156488836,1e-08,102170.0,102160.0,1.49802816]
[1738156493140,1e-08,102170.0,102160.0,1.5901743]
[1738156493342,1e-08,102170.0,102160.0,1.5336933]
[1738156493639,1e-08,102170.0,102160.0,1.49802816]
[1738156494843,1e-08,102170.0,102160.0,1.51274816]
[1738156495235,1e-08,102170.0,102160.0,1.69274816]
[1738156495638,0.08069989,102190.0,102180.0,0.28794814]
[1738156495836,0.78407528,102200.0,102190.0,0.195783]
[1738156495837,0.74797533,102200.0,102190.0,0.195783]
[1738156496034,0.74797533,102200.0,102190.0,0.48792914]
[1738156496234,0.74797533,102200.0,102190.0,0.395783]
[1738156496644,0.74797533,102200.0,102190.0,0.48792914]
[1738156497441,0.74797533,102200.0,102190.0,0.48892914]
[1738156497636,0.74997533,102200.0,102190.0,0.48892914]
[1738156499148,0.74997533,102200.0,102190.0,0.396783]
[1738156499347,0.79187533,102200.0,102190.0,0.396783]
[1738156499844,0.79187533,102200.0,102190.0,0.48892914]
[1738156500045,0.79187533,102200.0,102190.0,0.396783]
[1738156500251,0.71117544,102200.0,102190.0,0.48892914]
[1738156500436,0.71117544,102200.0,102190.0,0.396783]
[1738156500636,0.80332158,102200.0,102190.0,0.396783]
[1738156500836,0.80332158,102200.0,102190.0,0.201]
[1738156501041,0.195783,102190.0,102180.0,0.19594485]
[1738156501245,0.596783,102190.0,102180.0,0.48809099]
[1738156501541,0.401,102190.0,102180.0,0.48809099]
[1738156502745,0.597783,102190.0,102180.0,0.48809099]
[1738156503147,0.597783,102190.0,102180.0,0.39594485]
[1738156503450,0.597783,102190.0,102180.0,0.48809099]
[1738156504055,0.598783,102190.0,102180.0,0.48809099]
[1738156505545,0.598783,102190.0,102180.0,0.58023713]
[1738156505546,0.3628,102190.0,102180.0,0.58023713]
[1738156505850,0.3628,102190.0,102180.0,0.66353713]
[1738156506044,0.3628,102190.0,102180.0,0.57139099]
[1738156506240,0.558583,102190.0,102180.0,0.48809099]
[1738156506443,0.598283,102190.0,102180.0,0.48809099]
[1738156506641,0.598283,102190.0,102180.0,0.39594485]
[1738156507247,0.598283,102190.0,102180.0,0.48809099]
[1738156507947,0.69042914,102190.0,102180.0,0.20014685]
[1738156508151,0.49464614,102190.0,102160.0,0.195832]
[1738156508354,0.556622,102170.0,102160.0,0.04]
[1738156508538,0.556622,102170.0,102160.0,0.68314131]
[1738156509348,1.00956814,102170.0,102160.0,0.64314131]
[1738156510049,0.195841,102160.0,102150.0,0.00014685]
[1738156510248,0.64878714,102160.0,102150.0,0.00014685]
[1738156510649,0.94878714,102160.0,102150.0,1e-08]
[1738156511252,0.64878714,102160.0,102150.0,1e-08]
[1738156511451,0.64878714,102160.0,102150.0,0.00300001]
[1738156511951,0.94878714,102160.0,102150.0,0.00300001]
[1738156512356,0.64878714,102160.0,102150.0,0.00300001]
[1738156513058,0.76558698,102160.0,102150.0,0.00300001]
[1738156513259,0.76568698,102160.0,102150.0,1e-08]
[1738156513751,0.67354084,102160.0,102150.0,0.09214615]
[1738156514057,0.67354084,102160.0,102150.0,0.11214615]
[1738156514058,0.67444084,102160.0,102150.0,0.11214615]
[1738156514549,0.67444084,102160.0,102150.0,0.02000001]
[1738156515354,0.67444084,102160.0,102150.0,1e-08]
[1738156515558,0.557641,102160.0,102150.0,1e-08]
[1738156515759,0.64978714,102160.0,102150.0,1e-08]
[1738156516659,0.64978714,102160.0,102150.0,0.02000001]
[1738156517060,0.64978714,102160.0,102150.0,1e-08]
[1738156517655,0.64978714,102160.0,102150.0,0.00100001]
[1738156519163,0.64978714,102160.0,102150.0,1e-08]
[1738156519663,0.557641,102160.0,102150.0,0.23000001]
[1738156519865,0.64978714,102160.0,102150.0,0.26950001]
[1738156520164,0.557641,102160.0,102150.0,0.35020001]
[1738156520864,0.64978714,102160.0,102150.0,0.35020001]
[1738156521861,0.64978714,102160.0,102150.0,0.26950001]
[1738156522062,0.64978714,102160.0,102150.0,1e-08]
[1738156522566,2.14978714,102160.0,102150.0,1e-08]
[1738156522760,2.14988714,102160.0,102150.0,1e-08]
[1738156523552,0.64988714,102160.0,102150.0,1e-08]
[1738156524066,0.64978714,102160.0,102150.0,1e-08]
[1738156524254,0.64978714,102160.0,102150.0,0.08350001]
[1738156528960,0.64978714,102160.0,102150.0,1e-08]
[1738156530573,0.64978714,102160.0,102150.0,0.08080001]
[1738156531470,0.64978714,102160.0,102150.0,0.30080001]
[1738156531672,0.557641,102160.0,102150.0,0.58880615]
[1738156532764,0.557641,102160.0,102150.0,0.49666001]
[1738156532966,0.557641,102160.0,102150.0,0.53566001]
[1738156533171,0.557641,102160.0,102150.0,0.53666001]
[1738156533472,0.556641,102160.0,102150.0,0.53666001]
[1738156534374,0.64878714,102160.0,102150.0,0.34080001]
[1738156535072,2.14878714,102160.0,102150.0,0.34080001]
[1738156535767,2.14878714,102160.0,102150.0,0.12080001]
[1738156537077,2.14878714,102160.0,102150.0,0.07990001]
[1738156537668,2.14978714,102160.0,102150.0,0.07990001]
[1738156537868,2.14978714,102160.0,102150.0,0.11870001]
[1738156538475,2.26658698,102160.0,102150.0,0.11770001]
[1738156539971,2.26658698,102160.0,102150.0,0.07780001]
[1738156541080,2.26658698,102160.0,102140.0,0.00011424]
[1738156541081,0.19586,102150.0,102140.0,0.00011424]
[1738156541281,0.64880614,102150.0,102140.0,0.00011424]
[1738156542188,0.195879,102140.0,102130.0,0.0414]
[1738156542377,0.64882514,102140.0,102130.0,0.23154685]
[1738156543279,0.55679324,102140.0,102130.0,0.23154685]
[1738156543479,0.55679324,102140.0,102130.0,0.23354685]
[1738156544277,0.55679324,102140.0,102130.0,0.31424685]
[1738156544786,0.64893938,102140.0,102130.0,0.31724685]
[1738156545489,0.55679324,102140.0,102130.0,0.31724685]
[1738156546286,0.36091424,102140.0,102130.0,0.60529099]
[1738156546489,0.00011424,102140.0,102130.0,0.60529099]
[1738156546682,0.11672224,102140.0,102130.0,0.60529099]
[1738156546882,0.11672224,102140.0,102130.0,0.96609099]
[1738156547580,0.12746912,102140.0,102130.0,0.96609099]
[1738156548091,0.12746912,102140.0,102130.0,0.87394485]
[1738156548787,0.32334812,102140.0,102130.0,0.87394485]
[1738156549475,0.20674012,102140.0,102130.0,0.87394485]
[1738156549882,0.20674012,102140.0,102130.0,0.51314485]
[1738156550088,0.56754012,102140.0,102130.0,0.51314485]
[1738156557393,0.20674012,102140.0,102130.0,0.87394485]
[1738156558093,0.01086112,102140.0,102130.0,0.96609099]
[1738156558589,0.20674012,102140.0,102130.0,0.96609099]
[1738156558784,0.01086112,102140.0,102130.0,0.96609099]
[1738156559184,0.20674012,102140.0,102130.0,0.96609099]
[1738156560091,0.01086112,102140.0,102130.0,0.96609099]
[1738156560804,0.673278,102150.0,102140.0,0.195879]
[1738156561095,0.673278,102150.0,102140.0,0.48802514]
[1738156561796,0.68376947,102150.0,102140.0,0.48802514]
[1738156562483,0.68376947,102150.0,102140.0,0.48902514]
[1738156563192,0.68376947,102150.0,102140.0,0.397879]
[1738156564394,0.77591561,102150.0,102140.0,0.397879]
[1738156564601,0.77591561,102150.0,102140.0,0.400879]
[1738156564803,0.68376947,102150.0,102140.0,0.400879]
[1738156566899,0.77591561,102150.0,102140.0,0.400879]
[1738156567086,0.77591561,102150.0,102140.0,0.205]
[1738156569399,0.77591561,102150.0,102140.0,0.400879]
[1738156569590,0.68376947,102150.0,102140.0,0.400879]
[1738156570098,0.77591561,102150.0,102140.0,0.400879]
[1738156572198,0.77591561,102150.0,102140.0,0.205]
[1738156573706,0.86806175,102150.0,102140.0,0.205]
[1738156574001,0.93926175,102150.0,102140.0,0.205]
[1738156574204,0.84711561,102150.0,102140.0,0.205]
[1738156574598,0.94546175,102150.0,102140.0,0.205]
[1738156574798,0.85331561,102150.0,102140.0,0.205]
[1738156574993,0.94546175,102150.0,102140.0,0.205]
[1738156576512,0.94546175,102150.0,102140.0,0.005]
[1738156576807,0.94546175,102150.0,102130.0,0.00014685]
[1738156576808,2.24959175,102150.0,102130.0,0.00014685]
[1738156576994,0.64882514,102140.0,102130.0,0.02014685]
[1738156577507,0.64882514,102140.0,102130.0,0.00014685]
[1738156578311,0.64882514,102140.0,102130.0,0.00114685]
[1738156578513,0.195917,102120.0,102110.0,0.1223]
[1738156578712,1.00966314,102120.0,102110.0,0.3423]
[1738156579008,1.00966314,102120.0,102110.0,0.042]
[1738156579800,0.917517,102120.0,102110.0,0.042]
[1738156580003,0.918517,102120.0,102110.0,0.042]
[1738156580510,0.918517,102120.0,102110.0,0.1202]
[1738156581107,1.03496111,102120.0,102110.0,0.1202]
[1738156581306,1.03496111,102120.0,102110.0,0.3402]
[1738156581509,1.03496111,102120.0,102110.0,0.1202]
[1738156583015,1.12710725,102120.0,102110.0,0.1202]
[1738156583617,1.12710725,102120.0,102110.0,0.3102]
[1738156584008,1.01066314,102120.0,102110.0,0.3102]
[1738156584511,1.02096286,102120.0,102110.0,0.3102]
[1738156585013,0.92881672,102120.0,102110.0,0.3102]
[1738156586517,1.02096286,102120.0,102110.0,0.3102]
[1738156586720,1.113109,102120.0,102110.0,0.19]
[1738156587019,0.195936,102110.0,102100.0,0.00014685]
[1738156587314,0.556736,102110.0,102100.0,0.03014685]
[1738156587916,0.556736,102110.0,102100.0,0.22610285]
[1738156588220,0.557736,102110.0,102100.0,0.22610285]
[1738156589221,0.557736,102110.0,102100.0,0.03014685]
[1738156589420,0.64988214,102110.0,102100.0,0.03014685]
[1738156590211,0.64988214,102110.0,102100.0,0.00014685]
[1738156590421,0.68408214,102110.0,102100.0,0.00014685]
[1738156590821,0.72428214,102110.0,102100.0,1e-08]
[1738156591221,0.195956,102100.0,102090.0,0.30996001]
[1738156591422,0.195994,102080.0,102070.0,0.11918018]
[1738156591616,1.00974014,102080.0,102070.0,0.11918018]
[1738156592116,0.86274614,102080.0,102040.0,0.28967709]
[1738156592323,0.556838,102060.0,102050.0,0.1191]
[1738156592518,0.556816,102070.0,102050.0,0.41729814]
[1738156592828,0.556816,102070.0,102060.0,0.28817814]
[1738156593121,0.55703877,102070.0,102060.0,0.196032]
[1738156593323,0.64918491,102070.0,102060.0,0.196032]
[1738156593912,0.55703877,102070.0,102060.0,0.196032]
[1738156594126,0.55703877,102070.0,102060.0,0.197032]
[1738156594512,0.36102277,102070.0,102060.0,0.197032]
[1738156595719,0.36102277,102070.0,102060.0,0.200032]
[1738156596424,0.36102277,102070.0,102060.0,0.220032]
[1738156596721,0.55703577,102070.0,102060.0,0.220032]
[1738156596926,0.56990705,102070.0,102060.0,0.220032]
[1738156597122,0.66205319,102070.0,102060.0,0.024]
[1738156597327,0.66205319,102070.0,102060.0,0.004]
[1738156598421,0.66197727,102070.0,102060.0,0.004]
[1738156599319,0.66204629,102070.0,102060.0,0.004]
[1738156599520,0.66197727,102070.0,102060.0,0.004]
[1738156599718,0.66205745,102070.0,102060.0,0.004]
[1738156600030,0.66197727,102070.0,102060.0,0.004]
[1738156600713,0.66205745,102070.0,102060.0,0.004]
[1738156600913,0.66204584,102070.0,102060.0,0.004]
[1738156601116,0.66197727,102070.0,102060.0,0.004]
[1738156601917,0.75412341,102070.0,102060.0,0.004]
[1738156602116,0.66197727,102070.0,102060.0,0.004]
[1738156602519,2.25412341,102070.0,102060.0,0.004]
[1738156603128,2.26012341,102070.0,102060.0,0.004]
[1738156603430,2.16797727,102070.0,102060.0,0.004]
[1738156603819,0.66197727,102070.0,102060.0,0.004]
[1738156605629,0.66205745,102070.0,102060.0,0.004]
[1738156605831,0.66197727,102070.0,102060.0,0.004]
[1738156606628,0.66205745,102070.0,102060.0,0.004]
[1738156607030,0.66197727,102070.0,102060.0,0.004]
[1738156607933,0.56983113,102070.0,102060.0,0.004]
[1738156608137,0.66197727,102070.0,102060.0,0.004]
[1738156609141,0.66197727,102070.0,102060.0,0.024]
[1738156610238,0.77842138,102070.0,102060.0,0.024]
[1738156611420,0.77842138,102070.0,102060.0,0.01935115]
[1738156614229,0.77842138,102070.0,102050.0,0.1191]
[1738156614230,0.196032,102060.0,102050.0,0.1191]
[1738156614431,0.64905176,102060.0,102050.0,0.3291]
[1738156614830,0.55690562,102060.0,102050.0,0.3291]
[1738156615631,0.55690562,102060.0,102050.0,0.42124614]
[1738156615839,0.55690562,102060.0,102050.0,0.61729714]
[1738156617035,0.55690562,102060.0,102050.0,0.3291]
[1738156618039,0.55690562,102060.0,102050.0,0.42124614]
[1738156618240,0.6438216,102060.0,102050.0,0.42124614]
[1738156618840,0.6438216,102060.0,102050.0,0.3291]
[1738156619543,0.73596774,102060.0,102050.0,0.3291]
[1738156621736,0.79391173,102060.0,102050.0,0.3291]
[1738156621937,0.70176559,102060.0,102050.0,0.3291]
[1738156624746,0.79391173,102060.0,102050.0,0.3291]
[1738156625831,0.70176559,102060.0,102050.0,0.3291]
[1738156626037,0.70176559,102060.0,102050.0,0.61729714]
[1738156627646,0.14493359,102060.0,102050.0,0.61729714]
[1738156627944,0.7436661,102070.0,102060.0,0.196032]
[1738156628141,0.7436661,102070.0,102060.0,0.49817814]
[1738156628343,0.5476501,102070.0,102060.0,0.59032428]
[1738156628540,0.556805,102080.0,102060.0,0.75509228]
[1738156628739,0.556805,102080.0,102070.0,0.28815914]
[1738156628941,0.556805,102080.0,102070.0,0.49815914]
[1738156630451,0.56951669,102080.0,102070.0,0.49815914]
[1738156630749,0.01271169,102080.0,102070.0,0.85895914]
[1738156631043,0.588939,102090.0,102080.0,0.195994]
[1738156631246,0.588939,102090.0,102080.0,0.30814014]
[1738156631850,0.588939,102090.0,102080.0,0.34604014]
[1738156632041,0.228139,102090.0,102080.0,0.34604014]
[1738156632245,0.588939,102090.0,102080.0,0.34604014]
[1738156632648,0.195994,102080.0,102070.0,0.0389]
[1738156632840,0.196013,102070.0,102060.0,0.00014685]
[1738156633041,0.64895914,102070.0,102060.0,0.02014685]
[1738156634451,2.14895914,102070.0,102060.0,0.02014685]
[1738156634951,0.64895914,102070.0,102060.0,0.00014685]
[1738156635142,0.85235515,102070.0,102060.0,0.00014685]
[1738156635342,0.85235515,102070.0,102060.0,0.00314685]
[1738156635746,0.85235515,102070.0,102060.0,0.00414685]
[1738156636152,0.85235515,102070.0,102060.0,0.01414685]
[1738156637142,0.85235515,102070.0,102060.0,0.00414685]
[1738156637349,0.89095515,102070.0,102060.0,0.00414685]
[1738156639552,0.84558543,102070.0,102060.0,0.00414685]
[1738156640351,0.85781483,102070.0,102060.0,0.00414685]
[1738156641357,0.74158854,102070.0,102060.0,0.00414685]
[1738156642463,2.24158854,102070.0,102060.0,0.00414685]
[1738156645854,0.74158854,102070.0,102060.0,0.00414685]
[1738156646356,2.24158854,102070.0,102060.0,0.00414685]
[1738156647856,2.33373468,102070.0,102060.0,0.00414685]
[1738156648155,2.24158854,102070.0,102060.0,0.00414685]
[1738156649555,2.24158854,102070.0,102060.0,1e-08]
[1738156650352,0.04901,102060.0,102010.0,0.35205951]
[1738156650652,0.64905514,102020.0,102010.0,0.0779866]
[1738156650858,0.64905514,102020.0,102010.0,0.0360866]
[1738156651058,0.68915514,102020.0,102010.0,0.0360866]
[1738156651764,0.6892358,102020.0,102010.0,0.0360866]
[1738156652365,0.196128,102010.0,102000.0,0.10014685]
[1738156652662,0.64916482,102010.0,102000.0,0.10014685]
[1738156653867,0.65116482,102010.0,102000.0,0.10014685]
[1738156654367,0.65107414,102010.0,102000.0,0.10014685]
[1738156654966,0.65107414,102010.0,102000.0,0.07817177]
[1738156655468,0.65107414,102010.0,102000.0,0.05200873]
[1738156655970,0.74322028,102010.0,102000.0,0.02172873]
[1738156656264,0.74322028,102010.0,102000.0,7.3e-07]
[1738156656470,0.56224738,102010.0,101980.0,0.08097065]
[1738156656769,0.64911214,101990.0,101980.0,0.08097065]
[1738156656969,0.64920282,101990.0,101980.0,0.08097065]
[1738156657270,1.01000282,101990.0,101980.0,0.08097065]
[1738156657476,1.05240282,101990.0,101980.0,0.08097065]
[1738156657969,1.05240282,101990.0,101980.0,0.08797065]
[1738156658370,1.05240282,101990.0,101980.0,0.09097065]
[1738156659267,1.05231214,101990.0,101980.0,0.007]
[1738156659468,0.196186,101980.0,101970.0,0.00014685]
[1738156659669,0.74127828,101980.0,101970.0,0.00014685]
[1738156659868,0.196205,101970.0,101960.0,0.04196001]
[1738156660169,0.64915114,101970.0,101960.0,0.04196001]
[1738156660968,0.64924182,101970.0,101960.0,0.04196001]
[1738156661163,0.28835114,101970.0,101960.0,0.04196001]
[1738156661362,7.229e-05,101970.0,101960.0,0.54590615]
[1738156661566,0.19633885,101980.0,101960.0,0.74213015]
[1738156661766,0.19633885,101980.0,101970.0,0.09214614]
[1738156661968,0.19633885,101980.0,101970.0,0.21]
[1738156662573,0.55713885,101980.0,101970.0,0.21]
[1738156662963,0.55713885,101980.0,101970.0,0.211]
[1738156663169,0.64928499,101980.0,101970.0,0.211]
[1738156663763,0.64928499,101980.0,101970.0,0.212]
[1738156663975,0.55713885,101980.0,101970.0,0.212]
[1738156666776,0.196205,101970.0,101950.0,9.79e-05]
[1738156667075,1.03586828,101960.0,101910.0,0.03531867]
[1738156667275,0.19632,101910.0,101900.0,0.5423]
[1738156668277,0.28846614,101910.0,101900.0,0.5423]
[1738156668775,0.19632,101910.0,101900.0,0.5423]
[1738156668974,0.28846614,101910.0,101900.0,0.5423]
[1738156669880,0.28846614,101910.0,101900.0,0.4608]
[1738156670085,0.28846614,101910.0,101900.0,0.1]
[1738156670086,0.64926614,101910.0,101900.0,0.1]
[1738156670382,0.28846614,101910.0,101900.0,0.1]
[1738156670775,0.19632,101910.0,101900.0,0.1]
[1738156670973,0.45309299,101920.0,101900.0,0.1]
[1738156671173,0.21202502,101920.0,101910.0,0.3608]
[1738156671681,0.21202502,101920.0,101900.0,0.82998614]
[1738156671880,0.21202502,101920.0,101900.0,0.85998614]
[1738156672083,0.21302502,101920.0,101900.0,0.85998614]
[1738156672382,0.30517116,101920.0,101910.0,0.3608]
[1738156672883,0.21602502,101920.0,101910.0,0.3608]
[1738156674076,0.30517116,101920.0,101910.0,0.3628]
[1738156674784,0.30417116,101920.0,101910.0,0.3628]
[1738156674987,0.30417116,101920.0,101910.0,0.3638]
[1738156676278,0.21202502,101920.0,101910.0,0.3638]
[1738156676477,0.21202502,101920.0,101910.0,0.56012]
[1738156676776,0.21202502,101920.0,101910.0,0.59872]
[1738156677086,0.21202502,101920.0,101910.0,0.81872]
[1738156678987,0.30417116,101920.0,101910.0,0.81872]
[1738156679389,0.30417116,101920.0,101910.0,0.6224]
[1738156679780,0.30417116,101920.0,101910.0,0.81872]
[1738156679781,0.21202502,101920.0,101910.0,0.81872]
[1738156679979,0.00014685,101920.0,101910.0,0.91086614]
[1738156680284,0.196285,101930.0,101920.0,0.196301]
[1738156680589,0.196285,101930.0,101920.0,0.777101]
[1738156680789,0.46828863,101940.0,101920.0,0.5808]
[1738156680984,0.46828863,101940.0,101930.0,0.557082]
[1738156680985,0.41319999,101940.0,101930.0,0.557082]
[1738156681183,0.41319999,101940.0,101930.0,0.848782]
[1738156681488,0.21693099,101940.0,101930.0,0.94092814]
[1738156681790,0.21693099,101940.0,101930.0,0.848782]
[1738156681791,0.41319399,101940.0,101930.0,0.848782]
[1738156681989,0.50534013,101940.0,101930.0,0.848782]
[1738156682386,0.3978515,101940.0,101930.0,0.848782]
[1738156683288,0.3978515,101940.0,101930.0,0.94092814]
[1738156683488,0.4028515,101940.0,101930.0,0.94092814]
[1738156683685,0.4028515,101940.0,101930.0,0.848782]
[1738156683987,0.29340914,101940.0,101930.0,0.848782]
[1738156684194,0.29240914,101940.0,101930.0,0.848782]
[1738156684589,0.28840914,101940.0,101930.0,0.848782]
[1738156684786,0.196263,101940.0,101930.0,0.848782]
[1738156685088,0.196263,101940.0,101930.0,0.849782]
[1738156685878,0.196263,101940.0,101930.0,0.6535]
[1738156686289,0.196263,101940.0,101930.0,0.849782]
[1738156686488,0.10162409,101950.0,101930.0,0.74764614]
[1738156686701,0.32667445,101950.0,101940.0,0.557062]
[1738156686884,0.32667445,101950.0,101940.0,0.757062]
[1738156687088,0.32667445,101950.0,101940.0,0.84920814]
[1738156687392,0.32667445,101950.0,101940.0,0.798662]
[1738156687784,0.32767445,101950.0,101940.0,0.798662]
[1738156687981,0.13142245,101950.0,101940.0,0.89080814]
[1738156688477,0.13142245,101950.0,101940.0,0.89180814]
[1738156688684,0.11634028,101950.0,101940.0,0.89180814]
[1738156690195,0.14399179,101960.0,101950.0,0.196243]
[1738156690489,0.14399179,101960.0,101950.0,0.85918914]
[1738156690689,0.08670518,101960.0,101950.0,0.85918914]
[1738156691283,0.08670518,101960.0,101950.0,0.86018914]
[1738156691586,0.08670518,101960.0,101950.0,0.86218914]
[1738156693193,0.28292918,101960.0,101950.0,0.86218914]
[1738156693385,0.08670518,101960.0,101950.0,0.86218914]
[1738156694388,1.03497014,101960.0,101950.0,0.15315413]
[1738156694594,0.19632,101910.0,101900.0,0.44654954]
[1738156694784,0.64926614,101910.0,101900.0,0.43800902]
[1738156695091,0.64926614,101910.0,101900.0,0.43653732]
[1738156695281,0.64926614,101910.0,101900.0,0.39363683]
[1738156695793,0.65126614,101910.0,101900.0,0.39363683]
[1738156696696,0.71324759,101910.0,101900.0,0.39363683]
[1738156696992,0.37814783,101910.0,101900.0,0.39363683]
[1738156697297,0.71324759,101910.0,101900.0,0.39363683]
[1738156697484,0.71124759,101910.0,101900.0,0.39363683]
[1738156698483,0.71124759,101910.0,101900.0,0.10129949]
[1738156701193,0.71124759,101910.0,101900.0,0.09145948]
[1738156702591,0.51492759,101910.0,101900.0,0.28779948]
[1738156704901,0.51492759,101910.0,101900.0,0.48779948]
[1738156705287,0.71124759,101910.0,101900.0,0.48779948]
[1738156705891,0.57246783,101910.0,101900.0,0.48779948]
[1738156706295,0.37614783,101910.0,101900.0,0.48779948]
[1738156706795,0.57246783,101910.0,101900.0,0.48779948]
[1738156706996,0.81492759,101910.0,101890.0,0.00998686]
[1738156707292,0.81492759,101910.0,101860.0,2.24386551]
[1738156707293,0.098183,101890.0,101860.0,2.24386551]
[1738156707495,2.55677676,101870.0,101860.0,1.87503354]
[1738156707690,2.55677676,101870.0,101860.0,1.60195618]
[1738156707886,1.05677676,101870.0,101860.0,1.60195618]
[1738156708102,0.7216,101870.0,101860.0,1.60195618]
[1738156708797,0.86037976,101870.0,101860.0,1.61730516]
[1738156709191,0.44254685,101880.0,101860.0,2.02810516]
[1738156709494,0.58132661,101880.0,101860.0,2.22451616]
[1738156709687,0.58132661,101880.0,101860.0,2.02910516]
[1738156709899,0.13877976,101870.0,101860.0,1.81471516]
[1738156710198,0.13877976,101870.0,101860.0,1.79936618]
[1738156710398,0.33517676,101870.0,101860.0,1.79936618]
[1738156710586,0.77770761,101880.0,101860.0,1.80036618]
[1738156710998,0.13877976,101870.0,101860.0,1.80036618]
[1738156711797,0.69597676,101870.0,101860.0,1.80062979]
[1738156712196,0.69597676,101870.0,101860.0,1.80162979]
[1738156712595,0.3608,101870.0,101860.0,1.80162979]
[1738156713888,0.557197,101870.0,101860.0,1.80162979]
[1738156714297,0.69597676,101870.0,101860.0,1.37119429]
[1738156714891,0.557197,101870.0,101860.0,1.37119429]
[1738156716195,0.69597676,101870.0,101860.0,1.37119429]
[1738156717092,0.69597676,101870.0,101860.0,1.3865445]
[1738156718290,0.69597676,101870.0,101860.0,1.37119429]
[1738156726005,0.69597676,101870.0,101860.0,1.58654426]
[1738156727707,0.557197,101870.0,101860.0,1.76761129]
[1738156728295,0.3608,101870.0,101860.0,1.76761129]
[1738156730509,0.55475966,101880.0,101870.0,0.196398]
[1738156730708,0.55475966,101880.0,101870.0,0.427298]
[1738156730911,0.19395966,101880.0,101870.0,0.47823801]
[1738156731213,0.17279015,101900.0,101870.0,0.93430426]
[1738156731403,0.16295014,101900.0,101890.0,0.557159]
[1738156731603,0.16295014,101900.0,101890.0,0.767159]
[1738156732308,0.16595014,101900.0,101890.0,0.767159]
[1738156732704,0.16595014,101900.0,101890.0,0.90591628]
[1738156733016,0.00014685,101910.0,101900.0,0.19634]
[1738156733211,0.00014685,101910.0,101900.0,0.88589728]
[1738156734514,0.557089,101930.0,101920.0,0.196301]
[1738156736519,0.196289,101930.0,101920.0,0.196301]
[1738156736819,0.51703945,101930.0,101920.0,0.196301]
[1738156737609,0.51603945,101930.0,101920.0,0.196301]
[1738156737909,0.3608,101930.0,101920.0,0.196301]
[1738156738105,0.3638,101930.0,101920.0,0.196301]
[1738156738708,0.3638,101930.0,101920.0,0.396301]
[1738156738908,0.3608,101930.0,101920.0,0.396301]
[1738156742911,0.3608,101930.0,101920.0,0.53505828]
[1738156743719,0.557082,101930.0,101920.0,0.53505828]
[1738156743909,0.557082,101930.0,101920.0,0.396301]
[1738156747826,0.557082,101930.0,101920.0,0.53505828]
[1738156748417,0.3608,101930.0,101920.0,0.53505828]
[1738156748613,0.05767101,101940.0,101930.0,0.196282]
[1738156748819,0.05767101,101940.0,101930.0,0.89583928]
[1738156749133,0.01369861,101940.0,101930.0,0.93773928]
[1738156749429,0.00014685,101940.0,101930.0,0.93773928]
[1738156750623,0.00014685,101940.0,101930.0,0.93873928]
[1738156750823,1e-08,101940.0,101930.0,0.93873928]
[1738156751829,1e-08,101940.0,101930.0,0.93773928]
[1738156753030,0.19626301,101940.0,101930.0,0.93773928]
[1738156753225,0.55706301,101940.0,101930.0,0.57693928]
[1738156753525,0.29582029,101940.0,101930.0,0.2]
[1738156753729,0.49208329,101940.0,101930.0,0.2]
[1738156753931,0.35332601,101940.0,101930.0,0.2]
[1738156754527,1.85332601,101940.0,101930.0,0.396282]
[1738156754726,0.35332601,101940.0,101930.0,0.396282]
[1738156755431,0.20961809,101950.0,101940.0,0.196263]
[1738156755732,0.66286789,101950.0,101930.0,0.196273]
[1738156755931,0.3608,101940.0,101930.0,0.38641985]